Cogmind - Beta 17 @@@ ROGUE MODE // 2026.07.11 @ 12:15:51 Player: IsAway Result: Destroyed by as-55163 with Assembled Blade Performance ------------- Evolutions (0) 0 Regions Visited (2) 400 Robots Destroyed (10) 50 Value Destroyed (80) 80 Prototype IDs (2) 40 Alien Tech Used (0) 0 Bonus (0) 0 TOTAL SCORE: 570 Bonus ------- None Cogmind --------- Core Integrity 0/250 Matter 246/300 Energy 40/100 System Corruption 0% Temperature Cool (0) Movement Core (100) Ox1 Location -10/Mines Parts ------- > --- POWER (1) -------- (None) > --- PROPULSION (2) --- (None) > --- UTILITY (2) ------ Small Storage Unit > --- WEAPON (2) ------- (None) > --- INVENTORY (8) ---- Light Ion Engine Wheel Wheel Flight Unit Flight Unit Peak State ------------ > --- POWER ------------ (None) > --- PROPULSION ------- Light Treads Light Treads > --- UTILITY ---------- Small Storage Unit Improved Terrain Scanner > --- WEAPON ----------- Assault Rifle Assault Rifle > --- INVENTORY -------- Ion Engine Light Ion Engine Wheel Wheel Wheel Wheel Seismic Detector EM Pulse Gun [Rating: 8] Favorites ----------- Power Light Ion Engine Engine Light Ion Engine Propulsion Light Treads Treads Light Treads Flight Unit Flight Unit Utility Small Storage Unit Device Improved Terrain Scanner Storage Small Storage Unit Weapon Assault Rifle Energy Gun EM Pulse Gun Ballistic Gun Assault Rifle Ballistic Cannon Light Cannon Special Weapon Mining Laser Build | -11 -10 -10 ------- Run | Yrd Mat Min Slots Evolved . | . . . Power . | . . . Propulsion . | . . . Utility . | . . . Weapon . | . . . Parts Attached 17 | 6 4 7 Power 1 | . 1 . Engine 1 | . 1 . Core . | . . . Reactor . | . . . Propulsion 6 | 2 2 2 Treads 2 | 2 . . Leg . | . . . Wheel . | . . . Hover . | . . . Flight 4 | . 2 2 Utility 3 | 2 . 1 Device 2 | 1 . 1 Storage 1 | 1 . . Processor . | . . . Hackware . | . . . Protection . | . . . Artifact . | . . . Weapon 7 | 2 1 4 Energy Gun 1 | . . 1 Energy Cannon . | . . . Ballistic Gun 4 | 2 . 2 Ballistic Cannon 1 | . 1 . Launcher . | . . . Special Weapon 1 | . . 1 Impact Weapon . | . . . Slashing Weapon . | . . . Piercing Weapon . | . . . Special Melee Weapon . | . . . Unidentified Prototypes . | . . . Parts Lost 7 | . . 7 Power . | . . . Propulsion 2 | . . 2 Utility 1 | . . 1 Weapon 4 | . . 4 Highest Loss Streak 7 | . . 7 To Critical Strikes . | . . . Average Backups 7 | 5 7 7 Power 1 | 1 1 . Propulsion 3 | 3 2 4 Utility . | . 1 . Weapon 1 | . 1 2 Tool/Special . | . . . Unused Backups 7 | . 3 4 Power 1 | . 1 . Propulsion 6 | . 2 4 Utility . | . . . Weapon . | . . . Tool/Special . | . . . Average Slot Usage (%) 77 | . 83 73 Engine 1 | . . 2 Treads 12 | . 25 . Flight 15 | . 2 26 Device 8 | . 13 4 Storage 14 | . 14 14 Ballistic Gun 24 | . 25 23 Peak Build Rating 8 | 8 8 6 Average Rating 6 | 4 7 5 On Entrance 4 | . 8 4 Avg Prop Armor Cover (%) . | . . . Naked Turns . | . . . Heaviest Build 11 | 10 11 8 Greatest Support 40 | 40 40 8 Greatest Overweight (x) 2 | 2 . . Average Overweight (x) . | . . . Largest Inventory Capacity 8 | 8 8 8 Average Capacity 7 | 7 8 8 Most Carried 8 | 8 8 8 Average Carried 7 | 6 7 7 Final Capacity 8 | 8 8 8 Final Carried 8 | 8 8 5 Class Distribution -------------------- 51% | Mutant 48% | Scavenger-Mutant Dominant Class ---------------- Mutant | -10/Materials Scavenger-Mutant | -10/Mines Resources | -11 -10 -10 ----------- Run | Yrd Mat Min Matter Collected 437 | 256 110 71 Remotely . | . . . Salvage Created 302 | 112 131 59 Parts 22 | 8 8 6 Haulers Intercepted . | . . . Recyclers Shooed 1 | . 1 . Parts Field Recycled . | . . . Retrieved Matter . | . . . Parts Self-Destructed . | . . . Prevented . | . . . Parts Restored . | . . . Kills | -11 -10 -10 ------- Run | Yrd Mat Min Combat Hostiles Destroyed 7 | . 3 4 Guns 7 | . 3 4 Classes Destroyed 5 | 2 2 1 Worker 1 | . 1 . Tunneler 1 | 1 . . Recycler 2 | 1 1 . Swarmer 6 | . 3 3 Assembled 1 | . . 1 Best Kill Streak 4 | 1 4 3 Combat Bots Only 3 | . 3 3 Max Kills in Single Turn 2 | 1 2 1 Gunslinging 1 | . 1 . Exploded . | . . . Melee . | . . . Uniques/NPCs Destroyed . | . . . Combat | -11 -10 -10 -------- Run | Yrd Mat Min Hostile Shots Fired 48 | . 5 43 Missed 7 | . . 7 Hits 41 | . 5 36 Melee 7 | . . 7 Projectile 34 | . 5 29 Damage Taken 588 | . 39 549 Core 251 | . 8 243 Absorbed by Shields . | . . . Core Remaining (%) 100 | 100 . . Volleys Fired 28 | 4 8 16 Largest 2 | 2 2 2 Hottest 100 | 40 40 100 Shots Fired 54 | 8 16 30 Gun 53 | 8 16 29 Cannon . | . . . Launcher . | . . . Special 1 | . . 1 Kinetic 48 | 8 16 24 Thermal 1 | . . 1 Explosive . | . . . Electromagnetic 5 | . . 5 Robot Hit Streak 6 | 2 3 6 Robot Miss Streak 4 | 1 4 3 Penetration Max . | . . . Secondary Targets 3 | . 2 1 Max Gunslinging Chain 1 | . 1 1 Shots Hit Robots 30 | 5 6 19 Core Hits 18 | 3 6 9 Critical Kills . | . . . Critical Parts Destroyed . | . . . Critical Strikes . | . . . Melee Attacks . | . . . Impact . | . . . Slashing . | . . . Piercing . | . . . Sneak Attacks . | . . . Combat Hostiles . | . . . Follow-up Attacks . | . . . Damage Inflicted 349 | 55 94 200 Guns 325 | 55 94 176 Cannons . | . . . Explosions . | . . . Melee . | . . . Ramming . | . . . Kinetic 278 | 55 94 129 Thermal 24 | . . 24 Explosive . | . . . Electromagnetic 47 | . . 47 Impact . | . . . Slashing . | . . . Piercing . | . . . Highest Corruption . | . . . Average Corruption . | . . . Corruption Purged . | . . . Corruption Blocked . | . . . Overload Shots . | . . . Overflow Damage . | . . . Projectiles . | . . . Explosions . | . . . Melee . | . . . Knockbacks . | . . . Impact . | . . . Kinetic . | . . . Secondary . | . . . Self-Inflicted Damage . | . . . Shots . | . . . Rammed . | . . . Targets Rammed . | . . . Kicked . | . . . Crushed . | . . . Highest Temperature 30 | . . 30 Average Temperature 15 | . . 15 Received Heat Transfer . | . . . Siege Activations . | . . . Martial Activations . | . . . Shielding Activations . | . . . Robots Disrupted . | . . . Combat Hostiles . | . . . Robots Corrupted . | . . . Combat Hostiles . | . . . Parts Fried . | . . . Impact Corruptions . | . . . Robots Melted . | . . . Combat Hostiles . | . . . Parts Melted . | . . . Heat Transferred 50 | . . 50 Parts Sabotaged . | . . . Parts Stolen . | . . . Parts Stripped . | . . . Power Chain Reactions . | . . . Alert | -11 -10 -10 ------- Run | Yrd Mat Min Maximum Alert Level . | . . . Low Security (%) 100 | 100 100 100 Level 1 . | . . . Level 2 . | . . . Level 3 . | . . . Level 4 . | . . . Level 5 . | . . . High Security . | . . . Max Security . | . . . Peak Influence 88 | 5 66 88 Initial 13 | . . 13 Average 25 | . 20 40 Influence Increases 193 | 10 98 85 Destroy 0b10 Robot/C 120 | . 60 60 Destroy 0b10 Robot/NC 20 | 10 10 . Destroy Leader 20 | . 10 10 Successful Hack 17 | . 17 . Destroy Structure 1 | . 1 . Partial Spotted 15 | . . 15 Influence Decreases 193 | 10 62 121 Entered New Map 23 | . . 23 Time Decay 170 | 10 62 98 Squads Dispatched 1 | . 1 . Investigation 1 | . 1 . Extermination . | . . . Reinforcement . | . . . Assault . | . . . Garrison . | . . . Intercept . | . . . Searches Triggered . | . . . Construction Impeded . | . . . Haulers Reinforced . | . . . Active Scanning Responses . | . . . Cargo Convoy Interrupts . | . . . Stealth | -11 -10 -10 --------- Run | Yrd Mat Min Distress Signals 1 | . 1 . Communications Jammed . | . . . Distress Signals . | . . . Times Spotted 13 | . 4 9 Peak Tracking Total 4 | . 4 4 Tactical Retreats . | . . . Traps | -11 -10 -10 ------- Run | Yrd Mat Min Traps Triggered 1 | . 1 . Indirectly . | . . . Trap Hack Attempts . | . . . Triggered . | . . . Disarmed . | . . . Reprogrammed . | . . . Reused . | . . . Traps Extracted . | . . . Installed . | . . . Triggered . | . . . Machines | -11 -10 -10 ---------- Run | Yrd Mat Min Machines Disabled . | . . . Max in Single Turn . | . . . Machines Repaired . | . . . Machines Dismantled . | . . . Machines Sabotaged . | . . . Overloaded Fab Kills . | . . . Hacking | -11 -10 -10 --------- Run | Yrd Mat Min Machines Accessed 2 | . 2 . Terminals 2 | . 2 . Fabricators . | . . . Repair Stations . | . . . Recycling Units . | . . . Scanalyzers . | . . . Garrison Access . | . . . Total Hacks 9 | . 9 . Successful 3 | . 3 . Failed 6 | . 6 . Catastrophic 3 | . 3 . Database Lockouts . | . . . Manual 7 | . 7 . Terminals 9 | . 9 . Fabricators . | . . . Repair Stations . | . . . Recycling Units . | . . . Scanalyzers . | . . . Garrison Access . | . . . Terminal Hacks 3 | . 3 . Prototype ID Bank 1 | . 1 . Branch Access Points 1 | . 1 . Emergency Access Points 1 | . 1 . Fabricator Hacks . | . . . Repair Station Hacks . | . . . Recycling Unit Hacks . | . . . Scanalyzer . | . . . Garrison Access Hacks . | . . . Unauthorized Hacks . | . . . Terminals . | . . . Fabricators . | . . . Repair Stations . | . . . Recycling Units . | . . . Scanalyzers . | . . . Garrison Access . | . . . Data Cores Recovered . | . . . Used . | . . . Hacking Detections 2 | . 2 . Full Trace Events . | . . . Feedback Events . | . . . Feedback Blocked . | . . . Robot Schematics Acquired . | . . . Robots Built . | . . . Authchips . | . . . Time . | . . . Total Robot Build Rating . | . . . Part Schematics Acquired . | . . . Parts Built . | . . . Authchips . | . . . Time . | . . . Total Part Build Rating . | . . . Part Studies Acquired . | . . . Parts Repaired . | . . . Time . | . . . Parts Recycled . | . . . Recycled Matter . | . . . Retrieved Matter . | . . . Retrieved Components . | . . . Parts Scanalyzed . | . . . Part Schematics Acquired . | . . . Parts Damaged . | . . . Bothacking | -11 -10 -10 ------------ Run | Yrd Mat Min Used RIF Installer . | . . . Robots Hacked . | . . . Non-combat . | . . . Combat . | . . . Robot Hacks Applied . | . . . Relay Couplers Released . | . . . Fabnet Peak Effective % . | . . . Robots Rewired . | . . . Allies Hacked . | . . . Hacks Repelled . | . . . Allies | -11 -10 -10 -------- Run | Yrd Mat Min Total Allies . | . . . Largest Group . | . . . Highest-Rated Group . | . . . Highest-Rated Ally . | . . . Total Orders . | . . . Ally Attacks . | . . . Total Damage . | . . . Kills . | . . . Allies Corrupted . | . . . Allies Melted . | . . . Intel | -11 -10 -10 ------- Run | Yrd Mat Min Active Infowar (turns) 295 | 34 192 69 Terrain 226 | 34 192 . Seismic 69 | . . 69 Robot Analysis Total . | . . . Derelict Logs Recovered 2 | . . 2 Drone Launches . | . . . Drone Recoveries . | . . . Exploration | -11 -10 -10 ------------- Run | Yrd Mat Min Turns Passed 533 | 113 196 224 Spaces Moved 423 | 59 111 253 Core 30 | 30 . . Treads 119 | 29 90 . Legs . | . . . Wheels . | . . . Hover . | . . . Flight 274 | . 21 253 Fastest Speed 37 | 50 37 37 Average Speed 76 | 132 136 37 Slowest Speed 160 | 160 160 37 Overloaded Moves . | . . . Propulsion Burnouts . | . . . Robots Hopped . | . . . Potential Cave-ins . | . . . Cave-ins Triggered . | . . . Exploration Rate (%) 27 | 4 25 54 Regions Visited 2 Branch Regions 1 Pre-discovered Areas 2 | . . 2 Known Exits Taken 1 | . 1 . Unknown Exits Taken 1 | 1 . . Scrap Searched . | . . . Spaces Dug . | . . . Terrain Destroyed . | . . . Melee . | . . . Projectile . | . . . AOE . | . . . Terrain Rammed . | . . . Walls Destroyed . | . . . Machines Disabled . | . . . Actions | -11 -10 -10 --------- Run | Yrd Mat Min Total 587 | 85 143 359 Wait 76 | 5 . 71 Move 421 | 58 110 253 Hop . | . . . Pick Up 20 | 12 8 . Fast Attach 4 | 2 . 2 Attach 14 | 4 3 7 Detach 7 | . 2 5 Swap 4 | . 2 2 Drop 13 | . 10 3 Fire 28 | 4 8 16 Melee . | . . . Ram . | . . . Kick . | . . . Crush . | . . . Escape Stasis . | . . . Rewire . | . . . Trap . | . . . Miscellaneous . | . . . Route ------- -11/Scrapyard -10/Materials -10/Mines History --------- Turn | Location | Event 2 | -11/Scrapyard | Met Revision 17 6 | -11/Scrapyard | Discovered new exit (range 16) 114 | -11/Scrapyard | Entered Materials 193 | -10/Materials | Identified exit to Mines 310 | -10/Materials | Entered Mines 353 | -10/Mines | Assembled infested the area 379 | -10/Mines | Learned Materials trap positions 400 | -10/Mines | Learned location of Storage (-8) 530 | -10/Mines | Core integrity fell below 50% 533 | -10/Mines | Core integrity fell below 20% 534 | -10/Mines | Destroyed by as-55163 with Assembled Blade Last Messages --------------- World map updated: -8/Storage. A derelict emerges from the shadows: "Are any of them following you? I'm here trying to lose some heat after our second raid on Storage failed. Whatever you do stay away from that place, they've tightened security following our previous successful raids." World map confirmed: -8/Storage. EE-PWT(g): "We scattered so the Unaware couldn't effectively use their advantage in numbers, and I suggest you do the same." EE-PWT(g) slips back into the shadows. as-88653 destroyed. Acquired 23 matter. Flight Unit destroyed. Lgt. Assault Rifle destroyed. EM Pulse Gun destroyed. K-01 Serf collects debris. Mining Laser destroyed. Seismic Detector destroyed. Map ----- +----------------------------------------------------+ | | | | | | | | | | | | | | | | | | | | | ???????????????????????????????????????????????? | | ???????????????????????????????????????????????? | | ???????????????????????????????????????????????? | | ???????????????????????????????????????????????? | | ???????????????????????????????????????????????? | | ???????????????????????????????????????????????? | | ???????????????????????????????????????????????? | | ??????????????????#####????????????????????????? | | ?????????????????## ##??????????????????????? | | ????????????????## ##????????????#####?#### | | ????????????????# ##?????????### ### # | | ?????????????????? #????????## | | ?????????????????? % #???????## | | ?????????????????? %a! #???????# | | ??????????????????? #aaa ##????## """ | | ????????????????????? #@ ###### ## """ | | ??????????????????????#k #??# """ | | ??????????????????????# #??# | | ??????????????????????# # #?## | | ??????????????????????# ## ##?# | | ??????????????????????# #?# %= #### # | | ??????????????????????# #?#### ## ####### | | ?????????????####???### ####### ##?????? | | ????????????## ##??# % ## ##??????? | | ???????????## ##?# ##### ### ##???????? | | ??????????## ### ###???# #?# #????????? | | ?????????## #?????# #?# #????????? | | ???????### ##?????# #?## ##????????? | | ??????## #??????# #??## #?????????? | | ??????# ## ##??????# ##### #?????????? | | ??????# ######???????# #?????????? | | ??????## #????????????#########?????????? | | ???????## ##??????????????????????????????? | | ????????## #???????????????????????????????? | | ?????????# #???????????????????????????????? | | ?????????## ##??????????????????????????????? | | ??????????## ##?????????????????????????????? | | ???????????# #########?????????????????????? | | ???????????# [ = =#?????????????????????? | | ????????# = #?????????????????????? | +----------------------------------------------------+ Best States ------------- Heat Dissipation 25 Energy Generation 10 Energy Capacity 125 Matter Stores 300 Matter Capacity 300 Sight Range 16 Terrain Scan Range 16 Terrain Scan Density 10 Evasion (%) 62 Recoil Reduction 2 Item Schematics ----------------- None Robot Schematics ------------------ None Fabricated ------------ Nothing Repaired ---------- Nothing Studied --------- None Alien Tech Used ----------------- None Achievements -------------- None Challenges ------------ None Game ------ Seed CloakingAssembledGriptreads Manual? 0 Play Time 00:11:20 Cumulative 26.4 hours Start 2026.07.11 @ 12:00:37 End 2026.07.11 @ 12:15:51 Sessions 1 Manual Loads 0 Difficulty Rogue Special Mode None Game No. 37 Rogue 37 Adventurer 0 Explorer 0 Win Type - Total 0 Types 0/0/0/0/0/0/0/0/0/0 Lore% 27 Gallery% 21 Achievement% 20 Wizard Run 0 Options --------- Layout 1 ASCII 0 Keyboard 0 Movement Mouse Keybinds 0 Fullscreen 1 Font 18/SmallcapsGlow Map View 51x41 Zoom Use 0% Tactical HUD 0 Map Filters NONE Filters NONE Steam 1 RUN: b8c11092-159c-4388-b885-8bfb76454223